fUSD/lending_fUSD_20260202
["ID","MTS","AMOUNT","RATE_DAILY","PERIOD"]
[404309292,1770053448576,-13457.61482817,0.00011216,2]
[404309293,1770053448587,-19138.23941,0.00011216,2]
[404309294,1770053448598,-2447.56425142,0.00011216,2]
[404309295,1770053448609,-447.1571751,0.00011216,2]
[404309296,1770053448621,-303.94,0.00011216,2]
[404309297,1770053448670,-32806.8389977,0.00011216,2]
[404309298,1770053448687,-15326.61639768,0.00011216,2]
[404309299,1770053448698,-8000.0,0.00011216,2]
[404309300,1770053448711,-2821779.04509599,0.00011216,2]
[404309301,1770053448721,-889.97,0.00013699,2]
[404309302,1770053448731,-141343.40769188,0.00016,4]
[404309303,1770053448742,-320.000003,0.00016,4]
[404309304,1770053448949,-151.0,0.00015001,2]
[404309305,1770053448959,-601308.8776858,0.00016,4]
[404309306,1770053449928,-825.82621792,0.00016,4]
[404309307,1770053449944,-4491.11886986,0.00016,4]
[404309308,1770053449955,-6855.90067227,0.00016,4]
[404309309,1770053449984,-908.811586,0.00016,4]
[404309310,1770053449996,-454.49390535,0.00016,4]
[404309311,1770053450011,-801.0,0.00016,4]
[404309312,1770053450022,-475704.00000002,0.00016,4]
[404309313,1770053450108,-655.3938732,0.00016,4]
[404309314,1770053450120,-332.2326172,0.00016,4]
[404309315,1770053450148,-566094.61025408,0.00016,4]
[404309316,1770053450160,-72261.38974592,0.00016,4]
[404309317,1770053450172,-1001.2476485,0.00016,4]
[404309318,1770053450195,-1033.1630571,0.00016,4]
[404309319,1770053450212,-20393.36113817,0.00016,4]
[404309320,1770053451016,-900.0,0.00015068,2]
[404309321,1770053451026,-178946.54010005,0.00016,4]
[404309322,1770053451036,-200.0,0.00016,2]
[404309323,1770053451046,-155.468766,0.00016,2]
[404309324,1770053451055,-251.11897888,0.00016008,2]
[404309325,1770053451064,-769.8904873,0.00016021,2]
[404309326,1770053451073,-513.51105773,0.00016021,2]
[404309327,1770053451083,-1000.0,0.00016021,2]
[404309328,1770053451092,-1000.0,0.00016021,2]
[404309329,1770053451102,-1000.0,0.00016021,2]
[404309330,1770053451111,-1000.0,0.00016021,2]
[404309331,1770053451120,-1000.0,0.00016021,2]
[404309332,1770053451129,-1000.0,0.00016021,2]
[404309333,1770053451139,-1000.0,0.00016021,2]
[404309334,1770053451148,-1000.0,0.00016021,2]
[404309335,1770053451157,-826.63399032,0.00016021,2]
[404309336,1770053451167,-293.82457575,0.00016021,2]
[404309337,1770053451176,-1000.0,0.00016021,2]
[404309338,1770053451185,-1040.54063963,0.00016021,2]
[404309339,1770053451198,-1000.0,0.00016021,2]
[404309340,1770053451207,-843.37022852,0.00016021,2]
[404309341,1770053451217,-1000.0,0.00016021,2]
[404309342,1770053451226,-1000.0,0.00016021,2]
[404309343,1770053451237,-305.41786048,0.00016021,2]
[404309344,1770053451246,-1000.0,0.00016021,2]
[404309345,1770053451255,-1000.0,0.00016021,2]
[404309346,1770053451265,-1000.0,0.00016021,2]
[404309347,1770053451274,-1082.33207666,0.00016021,2]
[404309348,1770053451284,-501.6324076,0.00016021,2]
[404309349,1770053451293,-1000.0,0.00016021,2]
[404309350,1770053451303,-1000.0,0.00016021,2]
[404309351,1770053451312,-1003.32803614,0.00016021,2]
[404309352,1770053451321,-1000.0,0.00016021,2]
[404309353,1770053451331,-1000.0,0.00016021,2]
[404309354,1770053451341,-1000.0,0.00016021,2]
[404309355,1770053451351,-1000.0,0.00016021,2]
[404309356,1770053451361,-371.34493106,0.00016021,2]
[404309357,1770053451371,-1000.0,0.00016021,2]
[404309358,1770053451382,-1000.0,0.00016021,2]
[404309359,1770053451392,-1000.0,0.00016021,2]
[404309360,1770053451401,-500.40903786,0.00016021,2]
[404309361,1770053451410,-1000.0,0.00016021,2]
[404309362,1770053451420,-500.0,0.00016021,2]
[404309363,1770053451430,-1000.0,0.00016021,2]
[404309364,1770053451440,-1000.0,0.00016021,2]
[404309365,1770053451450,-194.71422031,0.00016021,2]
[404309366,1770053451459,-1000.0,0.00016021,2]
[404309367,1770053451469,-1000.0,0.00016021,2]
[404309368,1770053451478,-260.4103811,0.00016063,2]
[404309369,1770053451487,-270.0455652,0.00016118,2]
[404309370,1770053451497,-1252.0,0.00016146,2]
[404309371,1770053451506,-305.88,0.00016164,2]
[404309372,1770053451515,-2500.0,0.00016164,2]
[404309373,1770053451525,-1607.21812372,0.00016164,2]
[404309374,1770053451535,-2139.05832686,0.00016164,2]
[404309375,1770053451545,-280.03725112,0.00016173,2]
[404309376,1770053451554,-74815.82,0.000162,5]
[404309377,1770053451564,-500.0,0.00016219,2]
[404309378,1770053451573,-500.0,0.00016219,2]
[404309379,1770053451583,-500.0,0.00016219,2]
[404309380,1770053451592,-500.0,0.00016219,2]
[404309381,1770053451602,-500.0,0.00016219,2]
[404309382,1770053451611,-500.0,0.00016219,2]
[404309383,1770053451620,-500.0,0.00016219,2]
[404309384,1770053451630,-500.0,0.00016219,2]
[404309385,1770053451639,-722.55000179,0.00016219,2]
[404309386,1770053451653,-294.86999821,0.00016219,2]
[404309387,1770053451663,-1017.42,0.00016219,2]
[404309388,1770053451674,-513.79,0.00016219,2]
[404309389,1770053451683,-513.79,0.00016219,2]
[404309390,1770053451693,-651.24,0.00016219,2]
[404309391,1770053451702,-651.24,0.00016219,2]
[404309392,1770053451712,-500.0,0.00016219,2]
[404309393,1770053451721,-500.0,0.00016219,2]
[404309394,1770053451731,-500.0,0.00016219,2]
[404309395,1770053451742,-500.0,0.00016219,2]
[404309396,1770053451751,-447.31201145,0.00016219,2]
[404309397,1770053451775,-190.92798855,0.00016219,2]
[404309398,1770053451785,-638.24,0.00016219,2]
[404309399,1770053451796,-195.62625624,0.00016223,2]
[404309402,1770053521724,300.0,0.00011215,2]
[404309403,1770053566076,592.49052593,0.00011116,2]
[404309404,1770053581716,300.0,0.00011215,2]
[404309405,1770053581811,150.0,0.00011215,2]
[404309406,1770053581888,300.0,0.00011215,2]
[404309407,1770053583013,300.0,0.00011215,2]
[404309408,1770053638058,698.00037982,0.00011116,2]
[404309409,1770053640919,698.00037982,0.00011116,2]
[404309410,1770053654039,579.73569054,0.00011116,2]
[404309411,1770053661372,6081.78302389,0.00011116,2]
[404309412,1770053661396,10000.01,0.00011116,2]
[404309413,1770053661419,10000.01,0.00011116,2]
[404309414,1770053661440,803.33257272,0.00011116,2]
[404309415,1770053698994,736.22766415,0.00011116,2]
[404309416,1770053699629,5321.62704035,0.00011116,2]
[404309417,1770053701520,1200.0,0.00011215,2]
[404309418,1770053701608,300.0,0.00011215,2]
[404309419,1770053705988,151.0,0.00011213,2]
[404309420,1770053706347,151.0,0.00011213,2]
[404309428,1770053714074,1046.34229323,0.00011215,3]
[404309429,1770053714122,1046.34229321,0.00011215,3]
[404309430,1770053714162,1046.34229323,0.00011215,3]
[404309431,1770053714212,1046.34229323,0.00011215,3]
[404309432,1770053714263,1046.34229323,0.00011215,3]
[404309433,1770053714307,1046.34229323,0.00011215,3]
[404309434,1770053714356,1046.34229323,0.00011215,3]
[404309435,1770053714413,1046.34229323,0.00011215,3]
[404309436,1770053721734,150.0,0.00011188,2]
[404309437,1770053722107,1300.0,0.000105,3]
[404309438,1770053722500,150.0,0.00011188,2]
[404309439,1770053724202,2600.0,0.000106,3]
[404309440,1770053724250,5531.0,0.000134,5]
[404309441,1770053724659,1269.0,0.000131,3]
[404309442,1770053726326,3900.0,0.000107,3]
[404309443,1770053728455,5200.0,0.000108,3]
[404309444,1770053730328,444.02,0.00011094,2]
[404309445,1770053730537,6500.0,0.000109,3]
[404309446,1770053735860,444.02,0.00011123,2]
[404309447,1770053736081,148.78272278,0.00011152,2]
[404309448,1770053736107,295.23727722,0.00011152,2]
[404309449,1770053736309,444.02,0.00011181,2]
[404309450,1770053736516,444.02,0.00011211,2]
[404309451,1770053738294,162.65054244,0.00011116,2]
[404309453,1770053761711,300.0,0.00011215,2]
[404309454,1770053761835,150.0,0.00011215,2]
[404309456,1770053762550,300.0,0.00011215,2]
[404309457,1770053764391,1000.0,0.0001052,2]
[404309458,1770053780022,613.477614,0.00011159,2]
[404309459,1770053781929,1024.35415802,0.00011215,3]
[404309460,1770053781976,1024.35415802,0.00011215,3]
[404309461,1770053782025,1024.35415807,0.00011863,3]
[404309462,1770053782062,1024.35415802,0.00011215,3]
[404309463,1770053782102,1024.35415802,0.00011215,3]
[404309464,1770053782139,1024.35415802,0.00011215,3]
[404309465,1770053782176,1024.35415802,0.00011215,3]
[404309466,1770053782213,1024.35415802,0.00011215,3]
[404309467,1770053782276,1024.35415802,0.00011215,3]
[404309468,1770053782313,1024.35415802,0.00011215,3]
[404309469,1770053782359,1024.35415802,0.00011215,3]
[404309470,1770053784188,1935.07891639,0.00011116,2]
[404309471,1770053785941,523.50028483,0.00011116,2]
[404309472,1770053786142,5531.0,0.000133,5]
[404309473,1770053786656,5531.0,0.00013,3]
[404309474,1770053788245,523.50028483,0.00011116,2]
[404309475,1770053791968,13500.0,0.000105,3]
[404309476,1770053794072,5746.76591591,0.000106,3]
[404309477,1770053794099,21353.23408409,0.000106,3]
[404309478,1770053796169,40700.0,0.000107,3]
[404309479,1770053798268,37946.76591591,0.000108,3]
[404309480,1770053798293,16353.23408409,0.000108,3]
[404309481,1770053800622,67900.0,0.000109,3]
[404309482,1770053818058,1148.87217905,0.000133,5]
[404309483,1770053818082,4382.12782095,0.000133,5]
[404309484,1770053818300,5531.0,0.00013,3]
[404309485,1770053819943,3308.52508029,0.00011116,2]
[404309486,1770053819965,239.22627995,0.00011116,2]
[404309487,1770053824987,151.0,0.00011216,2]
[404309488,1770053825606,151.0,0.00011216,2]
[404309489,1770053826205,151.0,0.00011216,2]
[404309490,1770053826803,151.0,0.00011216,2]
[404309491,1770053827441,151.0,0.00011216,2]
[404309492,1770053827947,200.0,0.00011216,2]
[404309493,1770053828085,151.0,0.00011216,2]
[404309494,1770053828765,151.0,0.00011216,2]
[404309495,1770053829372,151.0,0.00011216,2]
[404309496,1770053829988,151.0,0.00011216,2]
[404309497,1770053830631,151.0,0.00011216,2]
[404309498,1770053830672,500.0,0.00011216,2]
[404309499,1770053831254,151.0,0.00011216,2]
[404309500,1770053831619,508.39632326,0.00011216,2]
[404309501,1770053832361,151.0,0.00011216,2]
[404309502,1770053833004,151.0,0.00011216,2]
[404309503,1770053833628,151.0,0.00011216,2]
[404309504,1770053834351,151.0,0.00011216,2]
[404309505,1770053834986,151.0,0.00011216,2]
[404309506,1770053835596,151.0,0.00011216,2]
[404309507,1770053836277,151.0,0.00011216,2]
[404309508,1770053836736,200.0,0.00011216,2]
[404309509,1770053836895,151.0,0.00011216,2]
[404309510,1770053837474,151.0,0.00011216,2]
[404309511,1770053838735,151.0,0.00011216,2]
[404309512,1770053839165,225.14204682,0.00011215,2]
[404309513,1770053839236,475.72008836,0.00011215,2]
[404309514,1770053839276,151.0,0.00011216,2]
[404309515,1770053840437,500.0,0.00011215,2]
[404309516,1770053840961,151.0,0.00011216,2]
[404309517,1770053841167,151.0,0.00011216,2]
[404309518,1770053841543,151.0,0.00011216,2]
[404309519,1770053841931,601.29062885,0.00011215,2]
[404309520,1770053841966,161.35772157,0.00011215,2]
[404309521,1770053842003,500.0,0.00011215,2]
[404309522,1770053842056,601.29062885,0.00011215,2]
[404309523,1770053842104,601.29062885,0.00011215,2]
[404309524,1770053842155,601.29062885,0.00011215,2]
[404309525,1770053842210,310.00502464,0.00011215,2]
[404309526,1770053842237,291.28560421,0.00011215,2]
[404309527,1770053842282,601.29062885,0.00011215,2]
[404309528,1770053842342,601.29062885,0.00011215,2]
[404309529,1770053842378,401.03334761,0.00011215,2]
[404309530,1770053842435,601.29062885,0.00011215,2]
[404309531,1770053842478,601.29062885,0.00011215,2]
[404309532,1770053842530,601.29062885,0.00011215,2]
[404309533,1770053842580,601.29062885,0.00011215,2]
[404309534,1770053842625,601.29062885,0.00011215,2]
[404309535,1770053842669,601.29062885,0.00011215,2]
[404309536,1770053842712,601.29062885,0.00011215,2]
[404309537,1770053842757,601.29062885,0.00011215,2]
[404309538,1770053842804,601.29062885,0.00011215,2]
[404309539,1770053842856,601.29062885,0.00011215,2]
[404309540,1770053842897,601.29062885,0.00011215,2]
[404309541,1770053842940,601.29062885,0.00011215,2]
[404309542,1770053843219,601.29062885,0.00011215,2]
[404309543,1770053843278,288.33161543,0.00011215,2]
[404309544,1770053843304,312.95901342,0.00011215,2]
[404309545,1770053843352,601.29062885,0.00011215,2]
[404309546,1770053843396,601.29062885,0.00011215,2]
[404309547,1770053843452,601.29062885,0.00011215,2]
[404309548,1770053843498,601.29062885,0.00011215,2]
[404309549,1770053843543,601.29062885,0.00011215,2]
[404309550,1770053843599,601.29062885,0.00011215,2]
[404309551,1770053843642,601.29062885,0.00011215,2]
[404309552,1770053843688,601.29062885,0.00011215,2]
[404309553,1770053843739,601.29062885,0.00011215,2]
[404309554,1770053843788,601.29062885,0.00011215,2]
[404309555,1770053843834,151.0,0.00011216,2]
[404309556,1770053843874,601.29062885,0.00011215,2]
[404309557,1770053843988,601.29062885,0.00011215,2]
[404309558,1770053844046,601.29062885,0.00011215,2]
[404309559,1770053844090,601.29062885,0.00011215,2]
[404309560,1770053844145,601.29062885,0.00011215,2]
[404309561,1770053844207,516.69155383,0.00011215,2]
[404309562,1770053844233,84.59907502,0.00011215,2]
[404309563,1770053844278,601.29062885,0.00011215,2]
[404309564,1770053844323,601.29062885,0.00011215,2]
[404309565,1770053844407,601.29062885,0.00011215,2]
[404309566,1770053844454,601.29062885,0.00011215,2]
[404309567,1770053844499,601.29062885,0.00011215,2]
[404309568,1770053844546,601.29062885,0.00011215,2]
[404309569,1770053844590,601.29062885,0.00011215,2]
[404309570,1770053844655,601.29062885,0.00011215,2]
[404309571,1770053844699,601.29062885,0.00011215,2]
[404309572,1770053844737,601.29062885,0.00011215,2]
[404309573,1770053844799,601.29062885,0.00011215,2]
[404309574,1770053844841,601.29062885,0.00011215,2]
[404309575,1770053844908,601.29062885,0.00011215,2]
[404309576,1770053844943,151.0,0.00011216,2]
[404309577,1770053844989,601.29062885,0.00011215,2]
[404309578,1770053845033,601.29062885,0.00011215,2]
[404309579,1770053845080,601.29062885,0.00011215,2]
[404309580,1770053845134,143.76086338,0.00011215,2]
[404309581,1770053845159,457.52976547,0.00011215,2]
[404309582,1770053845221,601.29062885,0.00011215,2]
[404309583,1770053845264,601.29062885,0.00011215,2]
[404309584,1770053845322,601.29062885,0.00011215,2]
[404309585,1770053845374,601.29062885,0.00011215,2]
[404309586,1770053845449,601.29062885,0.00011215,2]
[404309587,1770053845509,601.29062885,0.00011215,2]
[404309588,1770053847517,151.0,0.00011216,2]
[404309589,1770053849634,5531.0,0.000132,5]
[404309590,1770053849881,5531.0,0.000129,3]
[404309591,1770053850211,151.0,0.00011216,2]
[404309592,1770053850821,151.0,0.00011216,2]
[404309593,1770053851426,151.0,0.00011216,2]
[404309595,1770053854057,5330.73646143,0.00010575,2]
[404309596,1770053854079,10000.01,0.00010575,2]
[404309597,1770053854100,10000.01,0.00010575,2]
[404309598,1770053854123,10000.01,0.00010575,2]
[404309599,1770053854148,10000.01,0.00010575,2]
[404309600,1770053854168,1602.67353857,0.00010575,2]
[404309601,1770053855778,-1000.0,0.00011216,2]
[404309602,1770053855807,-1213.2118,0.00011216,2]
[404309603,1770053859386,-423.7470314,0.00011116,2]
[404309604,1770053862936,-2035.55567918,0.00011216,2]
[404309605,1770053862950,-10000.01,0.00011216,2]
[404309606,1770053862967,-10000.01,0.00011216,2]
[404309607,1770053863005,-10000.01,0.00011216,2]
[404309608,1770053863033,-10000.01,0.00011216,2]
[404309609,1770053863148,-10000.01,0.00011216,2]
[404309610,1770053863289,-10000.01,0.00011216,2]
[404309611,1770053868654,162.65054242,0.00011116,2]
[404309612,1770053873075,1000.0,0.000105,3]
[404309613,1770053874900,2100.0,0.000106,3]
[404309614,1770053876996,1584.76591591,0.000107,3]
[404309615,1770053877019,1515.23408409,0.000107,3]
[404309616,1770053879086,4200.0,0.000108,3]
[404309617,1770053881224,4122.12537349,0.000109,3]
[404309618,1770053881246,1077.87462651,0.000109,3]
[404309619,1770053881525,300.0,0.00011215,2]
[404309620,1770053881618,5531.0,0.000132,5]
[404309621,1770053881659,500.0,0.00011216,2]
[404309622,1770053883588,444.86620083,0.00011215,2]
[404309623,1770053883678,2092.06378113,0.00011215,2]
[404309624,1770053883712,378.38431742,0.00011215,2]
[404309625,1770053883762,184.97792066,0.00011215,2]
[404309626,1770053891879,3831.71620423,0.00011215,2]
[404309627,1770053900429,272.41675442,0.00011215,2]
[404309628,1770053913411,5531.0,0.000131,5]
[404309629,1770053914637,917.7101948,0.00011116,2]
[404309630,1770053914661,372.34241612,0.00011116,2]
[404309632,1770053939035,1000.0,0.00011116,2]
[404309633,1770053940139,2365.16757348,0.00011116,2]
[404309634,1770053941572,150.0,0.00011215,2]
[404309635,1770053942668,300.0,0.00011215,2]
[404309636,1770053945215,5531.0,0.000131,5]
[404309637,1770053945550,150.0,0.00011188,2]
[404309638,1770053945740,150.0,0.00011188,2]
[404309639,1770053946201,392.62521364,0.00011116,2]
[404309640,1770053948245,162.15718318,0.00011116,2]
[404309641,1770053951428,2500.01,0.00011116,2]
[404309642,1770053957254,2457.70761358,0.00011116,2]
[404309643,1770053957279,42.29238642,0.00011116,2]
[404309644,1770053968480,294.46891025,0.00011116,2]
[404309645,1770053973077,356.2518431,0.00011215,2]
[404309646,1770053976528,5531.0,0.000131,5]
[404309647,1770053980828,3357.42148738,0.00011116,2]
[404309648,1770053989021,162.65054242,0.00011116,2]
[404309649,1770053991443,179.84,8.785e-05,2]
[404309650,1770053991917,179.84,0.00010982,2]
[404309651,1770054001759,1200.0,0.00011215,2]
[404309652,1770054006560,4227.24483043,0.00011116,2]
[404309653,1770054006587,5772.75516957,0.00011116,2]
[404309654,1770054007920,5531.0,0.00013,5]
[404309655,1770054014131,365.38830608,0.00011206,2]
[404309656,1770054014198,365.38830608,0.00011206,2]
[404309657,1770054027098,170.84504992,0.00011116,2]
[404309658,1770054033301,500.0,0.00011116,2]
[404309659,1770054039787,5531.0,0.00013,5]
[404309660,1770054044843,860.03507394,0.00011116,2]
[404309661,1770054047920,1965.59809441,0.00011116,2]
[404309662,1770054047946,10000.01,0.00011116,2]
[404309663,1770054047969,10000.01,0.00011116,2]
[404309664,1770054047992,2346.38004253,0.00011116,2]
[404309665,1770054057750,151.5908,0.000112,2]
[404309666,1770054060378,1576.77838232,0.00011116,2]
[404309667,1770054061783,300.0,0.00011215,2]
[404309668,1770054062541,5625.26077515,0.00011116,2]
[404309669,1770054062565,10000.01,0.00011116,2]
[404309670,1770054062588,10000.01,0.00011116,2]
[404309671,1770054062612,10000.01,0.00011116,2]
[404309672,1770054062636,2233.24359805,0.00011116,2]
[404309673,1770054065139,210.4,0.00013215,7]
[404309674,1770054073023,5531.0,0.000129,5]
[404309675,1770054078381,150.80525673,0.00012897,5]
[404309676,1770054093147,3461.072,0.00010992,2]
[404309677,1770054093218,239.755,0.00010992,2]
[404309678,1770054100542,1000.0,0.00011116,2]
[404309679,1770054104555,5531.0,0.000129,5]
[404309680,1770054111553,306.73844818,0.00011116,2]
[404309681,1770054117244,-3537.3381,0.00011216,2]
[404309682,1770054117305,-5000.01,0.00011216,2]
[404309683,1770054120194,-5000.01,0.00011216,2]
[404309684,1770054121973,150.0,0.00011215,2]
[404309685,1770054126234,190.69172809,0.00011215,2]
[404309686,1770054127997,-2444.08440565,0.00011216,2]
[404309687,1770054128127,-10000.01,0.00011216,2]
[404309688,1770054128216,-10000.01,0.00011216,2]
[404309689,1770054128403,-10000.01,0.00011216,2]
[404309690,1770054128499,-10000.01,0.00011216,2]
[404309691,1770054128618,-10000.01,0.00011216,2]
[404309692,1770054128748,-10000.01,0.00011216,2]
[404309693,1770054128914,-10000.01,0.00011216,2]
[404309694,1770054130840,-10000.01,0.00011216,2]
[404309695,1770054130981,-10000.01,0.00011216,2]
[404309696,1770054134331,151.0,0.00011213,2]
[404309697,1770054136412,5531.0,0.000128,5]
[404309698,1770054138338,-4849.01,0.00011216,2]
[404309699,1770054138455,-5000.01,0.00011216,2]
[404309700,1770054138554,-5000.01,0.00011216,2]
[404309701,1770054138654,-5000.01,0.00011216,2]
[404309702,1770054138725,230.05383615,0.00011116,2]
[404309703,1770054138768,-4769.95616385,0.00011216,2]
[404309704,1770054141382,-522.21805013,0.00011215,2]
[404309705,1770054141412,-522.21805013,0.00011215,2]
[404309706,1770054141442,-522.21805013,0.00011215,2]
[404309707,1770054141477,-522.21805013,0.00011215,2]
[404309708,1770054141506,-300.04754883,0.00011215,2]
[404309709,1770054141738,-222.1705013,0.00011215,2]
[404309710,1770054144375,-522.21805013,0.00011215,2]
[404309711,1770054144407,-522.21805013,0.00011215,2]
[404309712,1770054144438,-522.21805013,0.00011215,2]
[404309713,1770054144468,-522.21805013,0.00011215,2]
[404309714,1770054144497,-300.04754883,0.00011215,2]
[404309715,1770054144619,-222.1705013,0.00011215,2]
[404309716,1770054144649,-522.21805013,0.00011215,2]
[404309717,1770054144680,-522.21805013,0.00011215,2]
[404309718,1770054144711,-522.21805013,0.00011215,2]
[404309719,1770054144741,-522.21805013,0.00011215,2]
[404309720,1770054144811,-522.21805013,0.00011215,2]
[404309721,1770054144847,-522.21805013,0.00011215,2]
[404309722,1770054144878,-522.21805013,0.00011215,2]
[404309723,1770054144911,-522.21805013,0.00011215,2]
[404309724,1770054144945,-300.04754883,0.00011215,2]
[404309725,1770054145088,-222.1705013,0.00011215,2]
[404309726,1770054145117,-522.21805013,0.00011215,2]
[404309727,1770054145148,-522.21805013,0.00011215,2]
[404309728,1770054145178,-522.21805013,0.00011215,2]
[404309729,1770054145208,-522.21805013,0.00011215,2]
[404309730,1770054145522,-300.04754883,0.00011215,2]
[404309731,1770054145540,-222.1705013,0.00011215,2]
[404309732,1770054145550,-300.04754883,0.00011215,2]
[404309733,1770054145567,-222.1705013,0.00011215,2]
[404309734,1770054145576,-155.75409506,0.00011215,2]
[404309735,1770054150421,-170.84504991,0.00011116,2]
[404309736,1770054150694,150.0,0.00011188,2]
[404309737,1770054151588,150.0,0.00011188,2]
[404309738,1770054164031,1633.212065,0.00011158,2]
[404309739,1770054167869,5531.0,0.000128,5]
[404309740,1770054167951,6724.1783,0.00011116,2]
[404309741,1770054175093,650.1070873,0.00011116,2]
[404309742,1770054176300,-366.46395507,0.00011215,2]
[404309743,1770054176330,-522.21805013,0.00011215,2]
[404309744,1770054176361,-522.21805013,0.00011215,2]
[404309745,1770054176391,-522.21805013,0.00011215,2]
[404309746,1770054176421,-522.21805013,0.00011215,2]
[404309747,1770054176452,-522.21805013,0.00011215,2]
[404309748,1770054176482,-522.21805013,0.00011215,2]
[404309749,1770054176513,-522.21805013,0.00011215,2]
[404309750,1770054176544,-522.21805013,0.00011215,2]
[404309751,1770054176576,-389.37523765,0.00011215,2]
[404309752,1770054176685,-132.84281248,0.00011215,2]
[404309753,1770054176716,-522.21805013,0.00011215,2]
[404309754,1770054176750,-522.21805013,0.00011215,2]
[404309755,1770054176782,-522.21805013,0.00011215,2]
[404309756,1770054176812,-522.21805013,0.00011215,2]
[404309757,1770054176843,-522.21805013,0.00011215,2]
[404309758,1770054176873,-522.21805013,0.00011215,2]
[404309759,1770054176903,-522.21805013,0.00011215,2]
[404309760,1770054176934,-522.21805013,0.00011215,2]
[404309761,1770054176967,-522.21805013,0.00011215,2]
[404309762,1770054177094,-522.21805013,0.00011215,2]
[404309763,1770054177124,-522.21805013,0.00011215,2]
[404309764,1770054177155,-522.21805013,0.00011215,2]
[404309765,1770054177185,-522.21805013,0.00011215,2]
[404309766,1770054177440,-522.21805013,0.00011215,2]
[404309767,1770054177472,-610.38473392,0.00011215,2]
[404309768,1770054177502,-610.38473392,0.00011215,2]
[404309769,1770054177532,-610.38473392,0.00011215,2]
[404309770,1770054177562,-505.13636126,0.00011215,2]
[404309771,1770054177635,-105.24837266,0.00011215,2]
[404309772,1770054177670,-610.38473392,0.00011215,2]
[404309773,1770054177700,-610.38473392,0.00011215,2]
[404309774,1770054177729,-610.38473392,0.00011215,2]
[404309775,1770054177760,-610.38473392,0.00011215,2]
[404309776,1770054177790,-610.38473392,0.00011215,2]
[404309777,1770054177821,-610.38473392,0.00011215,2]
[404309778,1770054177851,-610.38473392,0.00011215,2]
[404309779,1770054177881,-610.38473392,0.00011215,2]
[404309780,1770054179296,-610.38473392,0.00011215,2]
[404309781,1770054179326,-610.38473392,0.00011215,2]
[404309782,1770054179356,-610.38473392,0.00011215,2]
[404309783,1770054179386,-610.38473392,0.00011215,2]
[404309784,1770054179415,-610.38473392,0.00011215,2]
[404309785,1770054179444,-610.38473392,0.00011215,2]
[404309786,1770054179473,-610.38473392,0.00011215,2]
[404309787,1770054179501,-610.38473392,0.00011215,2]
[404309788,1770054179582,-610.38473392,0.00011215,2]
[404309789,1770054179611,-610.38473392,0.00011215,2]
[404309790,1770054179641,-610.38473392,0.00011215,2]
[404309791,1770054179671,-610.38473392,0.00011215,2]
[404309792,1770054179700,-610.38473392,0.00011215,2]
[404309793,1770054179730,-610.38473392,0.00011215,2]
[404309794,1770054179760,-610.38473392,0.00011215,2]
[404309795,1770054179789,-610.38473392,0.00011215,2]
[404309796,1770054182350,-237.2858,0.00011116,2]
[404309797,1770054182378,-1301.46215073,0.00011116,2]
[404309798,1770054182417,-610.38473392,0.00011215,2]
[404309799,1770054182449,-610.38473392,0.00011215,2]
[404309800,1770054182479,-610.38473392,0.00011215,2]
[404309801,1770054182511,-610.38473392,0.00011215,2]
[404309802,1770054182544,-610.38473392,0.00011215,2]
[404309803,1770054182575,-208.28202542,0.00011215,2]
[404309804,1770054182675,-402.1027085,0.00011215,2]